bitfinex-derivatives/quotes_BTCF0:USTF0_20210102
["timestamp","ask_amount","ask_price","bid_price","bid_amount"]
[1609585347395,1.18043158,29702.0,29699.0,0.00037895]
[1609585347595,1.18043158,29702.0,29701.0,0.00037895]
[1609585347897,1.18043158,29702.0,29700.0,0.00037895]
[1609585348296,1.18043158,29702.0,29698.0,0.00037898]
[1609585348496,1.88243158,29702.0,29701.0,0.00037898]
[1609585348696,1.88243158,29702.0,29699.0,0.00037898]
[1609585349096,2.88243158,29702.0,29701.0,0.00037898]
[1609585349296,2.88243158,29702.0,29697.0,0.10901]
[1609585349496,2.88243158,29702.0,29701.0,0.000379]
[1609585349697,2.88243158,29702.0,29698.0,0.00037902]
[1609585349897,0.18043158,29699.0,29698.0,0.00037902]
[1609585350098,1.18043158,29699.0,29697.0,0.10901]
[1609585350298,1.18043158,29699.0,29698.0,0.000379]
[1609585352900,0.18043158,29699.0,29698.0,0.000379]
[1609585353402,1.18043158,29699.0,29698.0,0.000379]
[1609585356808,0.18043158,29699.0,29698.0,0.000379]
[1609585357410,0.18043158,29699.0,29698.0,5.076979]
[1609585358311,0.18043158,29699.0,29698.0,0.000379]
[1609585360917,0.18043158,29699.0,29695.0,0.04143155]
[1609585361118,0.18043158,29699.0,29698.0,0.000379]
[1609585361418,0.18043158,29699.0,29695.0,0.000379]
[1609585361621,0.18043158,29699.0,29698.0,0.00037898]
[1609585361918,0.18043158,29699.0,29695.0,0.0414309]
[1609585362118,0.18043158,29699.0,29698.0,0.00037898]
[1609585362418,0.18043158,29699.0,29696.0,0.00037898]
[1609585362718,0.18043158,29699.0,29695.0,0.0414309]
[1609585362918,0.18043158,29699.0,29697.0,0.00037898]
[1609585363219,0.18043158,29699.0,29696.0,0.00037898]
[1609585363418,0.18043158,29699.0,29695.0,0.0414309]
[1609585363819,0.18043158,29699.0,29697.0,0.00037898]
[1609585364020,0.18043158,29699.0,29696.0,0.00037898]
[1609585364221,0.18043158,29699.0,29695.0,0.0414309]
[1609585364520,0.18043158,29699.0,29697.0,0.00037898]
[1609585364821,0.18043158,29699.0,29696.0,0.00037898]
[1609585365020,0.18043158,29699.0,29698.0,0.00037898]
[1609585365421,0.18043158,29699.0,29697.0,0.00037898]
[1609585365620,0.18043158,29699.0,29695.0,0.0414309]
[1609585365820,0.18043158,29699.0,29698.0,0.00037898]
[1609585366121,0.18043158,29699.0,29696.0,0.00037898]
[1609585366321,0.18043158,29699.0,29695.0,0.0414309]
[1609585366620,0.18043158,29699.0,29697.0,0.00037898]
[1609585366923,0.18043158,29699.0,29696.0,0.00037898]
[1609585367122,0.18043158,29699.0,29698.0,0.00037898]
[1609585367424,0.18043158,29699.0,29698.0,0.5637]
[1609585367724,0.18043158,29699.0,29698.0,0.60513023]
[1609585369527,0.11094,29704.0,29698.0,0.60513023]
[1609585369728,1.0,29710.0,29698.0,0.60513023]
[1609585370028,1.0,29710.0,29705.0,0.18043158]
[1609585370229,0.61047375,29706.0,29705.0,0.18043158]
[1609585370629,0.61047375,29706.0,29705.0,4.3113105]
[1609585370929,0.14648985,29711.0,29705.0,4.3113105]
[1609585371431,0.14648985,29711.0,29706.0,0.00037892]
[1609585372037,0.18043158,29707.0,29706.0,0.00037892]
[1609585373232,0.18043158,29707.0,29706.0,0.04141946]
[1609585374134,0.18043158,29707.0,29706.0,0.00037892]
[1609585374333,0.18043158,29707.0,29706.0,0.04141871]
[1609585376238,0.18043158,29707.0,29706.0,0.00037892]
[1609585377240,0.18043158,29707.0,29706.0,0.10067892]
[1609585377438,0.18043158,29707.0,29706.0,0.00037892]
[1609585380140,0.18043158,29707.0,29706.0,4.72267892]
[1609585381440,0.18043158,29707.0,29706.0,4.76371371]
[1609585381642,0.13184,29711.0,29706.0,4.76371371]
[1609585381841,0.01465593,29715.0,29706.0,4.72267892]
[1609585382041,0.01465593,29715.0,29707.0,0.00037882]
[1609585382244,0.2892,29716.0,29714.0,0.18043158]
[1609585382441,0.2892,29716.0,29715.0,0.7539]
[1609585382841,0.2892,29716.0,29715.0,0.75427882]
[1609585383743,0.2892,29716.0,29715.0,0.00037882]
[1609585383945,0.01465467,29720.0,29715.0,0.00037882]
[1609585384143,0.18043158,29716.0,29715.0,0.00037882]
[1609585384344,0.32257158,29716.0,29715.0,3.91427882]
[1609585391651,0.32257158,29716.0,29715.0,0.00037882]
[1609585404170,1.32257158,29716.0,29715.0,0.00037882]
[1609585404369,1.14214,29716.0,29715.0,0.00037882]
[1609585404573,6.39394,29716.0,29715.0,0.00037882]
[1609585404871,6.57437158,29716.0,29715.0,0.00037882]
[1609585405072,6.57437158,29716.0,29708.0,0.04141351]
[1609585405271,6.57437158,29716.0,29715.0,0.00037969]
[1609585405472,6.57437158,29716.0,29709.0,0.00037971]
[1609585405771,6.57437158,29716.0,29715.0,0.00037974]
[1609585405971,1.32257158,29716.0,29715.0,0.00037974]
[1609585406172,1.32257158,29716.0,29710.0,0.00037974]
[1609585406173,5.31937158,29716.0,29710.0,0.00037974]
[1609585406372,5.31937158,29716.0,29715.0,0.00037974]
[1609585406573,5.31937158,29716.0,29711.0,0.00037974]
[1609585406873,0.18043158,29712.0,29708.0,0.00037974]
[1609585407074,0.6551,29710.0,29707.0,0.03]
[1609585407276,1.0,29709.0,29707.0,0.03]
[1609585407675,1.0,29709.0,29708.0,0.00037975]
[1609585408975,1.18043158,29709.0,29708.0,0.00037975]
[1609585409376,0.18043158,29709.0,29708.0,0.00037975]
[1609585410376,0.18043158,29709.0,29704.0,0.04142149]
[1609585410578,0.18043158,29709.0,29708.0,0.00037977]
[1609585410778,0.18043158,29709.0,29705.0,0.00037977]
[1609585410979,0.18043158,29706.0,29705.0,0.00037977]
[1609585411178,0.18043158,29706.0,29704.0,0.04104172]
[1609585411380,0.18043158,29706.0,29705.0,0.00037977]
[1609585411579,0.18043158,29706.0,29704.0,0.04142149]
[1609585411880,0.18043158,29706.0,29705.0,0.00037977]
[1609585412479,0.18043158,29706.0,29704.0,0.04142149]
[1609585412679,0.18043158,29706.0,29705.0,0.00037977]
[1609585412979,0.18043158,29706.0,29704.0,0.04142149]
[1609585413279,0.18043158,29706.0,29705.0,0.00037977]
[1609585413780,0.18043158,29706.0,29704.0,0.00037977]
[1609585413982,0.18043158,29706.0,29705.0,0.00037977]
[1609585414581,0.18043158,29706.0,29704.0,0.04142102]
[1609585414781,0.18043158,29706.0,29705.0,0.00037977]
[1609585415381,0.18043158,29706.0,29704.0,0.04142102]
[1609585415582,0.18043158,29706.0,29705.0,0.00037977]
[1609585415882,0.18043158,29706.0,29704.0,0.04142102]
[1609585416083,0.18043158,29706.0,29705.0,0.00037976]
[1609585416382,0.18043158,29706.0,29704.0,0.04142101]
[1609585416783,0.18043158,29706.0,29705.0,0.00037976]
[1609585417183,0.18043158,29706.0,29704.0,0.04142101]
[1609585419286,5.581,29705.0,29704.0,0.04142101]
[1609585420288,5.581,29705.0,29704.0,0.00037976]
[1609585421693,0.18043158,29706.0,29704.0,0.00037976]
[1609585424395,1.0,29705.0,29704.0,0.00037976]
[1609585425193,1.0,29705.0,29704.0,0.04142295]
[1609585425995,0.18043158,29706.0,29704.0,0.04142295]
[1609585429599,0.18043158,29706.0,29705.0,3.8195]
[1609585430199,0.01466938,29713.0,29705.0,3.86092031]
[1609585430599,0.01466938,29713.0,29706.0,0.04141818]
[1609585430999,0.01466938,29713.0,29712.0,0.18043158]
[1609585431201,0.00428016,29714.0,29712.0,0.18043158]
[1609585431399,0.00428016,29714.0,29713.0,0.00037972]
[1609585432202,0.00428016,29714.0,29713.0,0.0414162]
[1609585433101,0.18471174,29714.0,29713.0,0.0414162]
[1609585436306,1.18471174,29714.0,29713.0,0.0414162]
[1609585436506,1.18471174,29714.0,29713.0,0.00037972]
[1609585438809,1.18471174,29714.0,29713.0,0.0414168]
[1609585439011,1.18471174,29714.0,29713.0,0.00037972]
[1609585440613,1.18471174,29714.0,29713.0,0.04141722]
[1609585441212,1.18471174,29714.0,29713.0,0.00037972]
[1609585441514,1.18043158,29714.0,29713.0,0.00037972]
[1609585442316,1.18043158,29714.0,29713.0,0.04141699]
[1609585442517,1.18470998,29714.0,29713.0,0.04141699]
[1609585443417,0.18470998,29714.0,29713.0,0.04141699]
[1609585443818,0.18043158,29714.0,29713.0,0.04141699]
[1609585447220,0.18043158,29714.0,29713.0,5.58761699]
[1609585453728,0.18043158,29714.0,29713.0,5.61761699]
[1609585453925,0.18043158,29714.0,29713.0,5.69966683]
[1609585463640,0.18043158,29714.0,29713.0,5.61761699]
[1609585464641,0.18043158,29714.0,29713.0,0.07141699]
[1609585466043,0.18043158,29714.0,29713.0,4.46661699]
[1609585473352,0.18043158,29714.0,29713.0,4.54866525]
[1609585479458,0.14214,29716.0,29713.0,4.54866525]
[1609585479659,0.18043158,29717.0,29713.0,5.54866525]
[1609585479961,0.18043158,29717.0,29714.0,0.12345143]
[1609585481464,0.18043158,29717.0,29716.0,4.84683158]
[1609585481764,0.18043158,29717.0,29716.0,4.97027192]
[1609585482365,0.01458188,29721.0,29716.0,4.97027192]
[1609585482866,0.0145789,29725.0,29717.0,0.04139892]
[1609585483466,0.0145789,29725.0,29724.0,0.18043158]
[1609585483867,0.0145789,29725.0,29724.0,0.18081172]
[1609585484069,0.0145789,29725.0,29724.0,0.22183083]
[1609585484265,0.0145789,29725.0,29724.0,0.18081172]
[1609585485668,0.19501048,29725.0,29724.0,0.18081172]
[1609585488969,0.32614048,29725.0,29724.0,5.73022867]
[1609585489170,0.32614048,29725.0,29724.0,5.68921172]
[1609585490572,0.32614048,29725.0,29724.0,5.73022834]
[1609585492175,0.1457089,29725.0,29724.0,5.73022834]
[1609585492374,0.13538218,29725.0,29724.0,5.73022834]
[1609585492576,0.76225596,29726.0,29724.0,6.73022834]
[1609585492977,0.49035596,29726.0,29725.0,0.04138386]
[1609585493179,0.28615596,29726.0,29725.0,0.04138386]
[1609585493581,0.03731596,29726.0,29725.0,0.04138386]
[1609585493778,0.02781596,29726.0,29725.0,0.12337621]
[1609585493979,0.02781596,29726.0,29725.0,1.04138386]
[1609585494581,2.22753322,29751.0,29725.0,1.04138386]
[1609585494582,0.72961869,29741.0,29725.0,1.04138386]
[1609585494983,0.72961869,29741.0,29726.0,0.0413786]
[1609585495586,0.72961869,29741.0,29740.0,0.18043158]
[1609585495785,0.72961869,29741.0,29740.0,0.97973158]
[1609585496087,0.72961869,29741.0,29740.0,0.98011149]
[1609585502391,0.72961869,29741.0,29740.0,0.97973158]
[1609585503090,0.10688,29748.0,29740.0,5.24120014]
[1609585503590,0.18043158,29745.0,29744.0,0.18043158]
[1609585504090,0.18043158,29745.0,29744.0,5.54983158]
[1609585506397,0.18043158,29745.0,29744.0,5.3694]
[1609585506996,0.18043158,29745.0,29740.0,4.26146856]
[1609585507696,0.18043158,29745.0,29744.0,0.18043158]
[1609585508097,0.18043158,29745.0,29744.0,5.61733158]
[1609585509298,0.10688,29748.0,29744.0,5.61733158]
[1609585509798,0.10688,29748.0,29747.0,0.18043158]
[1609585509998,0.18043158,29749.0,29747.0,0.18043158]
[1609585510700,0.18043158,29749.0,29748.0,5.5436]
[1609585512401,0.18043158,29749.0,29747.0,0.18043158]
[1609585512600,0.28890158,29749.0,29747.0,0.18043158]
[1609585513901,0.28890158,29749.0,29748.0,0.03]
[1609585515605,0.27890158,29749.0,29748.0,0.03]
[1609585519809,0.27685586,29749.0,29748.0,0.03]
[1609585522414,0.27685586,29749.0,29748.0,0.03038176]
[1609585522915,0.27726579,29749.0,29748.0,0.03038176]
[1609585538938,0.27726579,29749.0,29748.0,5.54868176]
[1609585540441,0.27522017,29749.0,29748.0,5.54868176]
[1609585545951,0.27481024,29749.0,29748.0,5.58967136]
[1609585547955,0.10847,29749.0,29748.0,5.58967136]
[1609585548155,0.18043158,29752.0,29748.0,5.58967136]
[1609585548556,0.18043158,29752.0,29749.0,0.04137069]
[1609585549957,0.18043158,29752.0,29750.0,0.18043158]
[1609585550157,0.18043158,29752.0,29750.0,5.15243158]
[1609585550356,0.18043158,29752.0,29751.0,0.04136958]
[1609585550856,0.18043158,29752.0,29751.0,3.87776958]
[1609585551960,0.17838617,29752.0,29751.0,3.87776958]
[1609585553959,0.17838617,29752.0,29751.0,5.91216167]
[1609585555762,0.17838617,29752.0,29751.0,5.8711738]
[1609585555963,0.30393617,29752.0,29751.0,5.8711738]
[1609585557768,0.30393617,29752.0,29751.0,5.91216037]
[1609585558067,0.30393617,29752.0,29751.0,5.8711738]
[1609585558268,0.30393617,29752.0,29751.0,5.9121603]
[1609585559669,0.40543617,29752.0,29751.0,5.9121603]
[1609585559869,0.30393617,29752.0,29751.0,5.9121603]
[1609585566181,0.30393617,29752.0,29751.0,2.0757603]
[1609585566384,5.52693617,29752.0,29751.0,2.0757603]
[1609585566583,5.52734603,29752.0,29751.0,2.0347738]
[1609585567083,6.52734603,29752.0,29751.0,2.0347738]
[1609585570284,2.30434603,29752.0,29751.0,2.0347738]
[1609585571086,1.30434603,29752.0,29751.0,0.00038171]
[1609585571584,1.30434603,29752.0,29749.0,0.00038248]
[1609585571784,1.30434603,29752.0,29751.0,0.00038248]
[1609585572088,0.00040999,29751.0,29750.0,0.00038248]
[1609585572285,0.00040999,29751.0,29748.0,0.03]
[1609585572286,1.30434616,29752.0,29751.0,0.00038246]
[1609585572585,0.00040999,29751.0,29750.0,0.00038246]
[1609585572885,1.30434616,29752.0,29748.0,0.03]
[1609585573085,0.00040999,29751.0,29750.0,0.00038245]
[1609585573485,0.00040999,29751.0,29749.0,0.00038245]
[1609585573685,0.00040999,29751.0,29750.0,0.00038245]
[1609585574186,0.00040999,29751.0,29749.0,0.00038245]
[1609585574487,0.30393617,29752.0,29749.0,0.00038245]
[1609585575689,0.30393617,29752.0,29751.0,5.0323]
[1609585576090,0.30393617,29752.0,29751.0,5.03268239]
[1609585577894,0.30393617,29752.0,29751.0,5.03268236]
[1609585585907,0.30189075,29752.0,29751.0,5.03268236]
[1609585589809,0.12555,29752.0,29751.0,5.03268236]
[1609585590009,1.0,29764.0,29751.0,5.03268236]
[1609585590210,1.0,29764.0,29759.0,0.18043158]
[1609585590610,0.00040985,29763.0,29760.0,0.00038234]
[1609585591011,0.10998985,29763.0,29762.0,3.7958]
[1609585591212,1.10958,29763.0,29762.0,3.7958]
[1609585591411,1.10998985,29763.0,29762.0,3.79618234]
[1609585592312,1.29042143,29763.0,29762.0,3.79618234]
[1609585592513,1.29001158,29763.0,29762.0,3.79618234]
[1609585593117,0.29001158,29763.0,29762.0,3.79618234]
[1609585597424,0.29001158,29763.0,29762.0,3.7958]
[1609585599528,0.29001158,29763.0,29762.0,3.79618233]
[1609585599726,0.29001158,29763.0,29762.0,3.7958]
[1609585600026,0.29042143,29763.0,29762.0,3.79618233]
[1609585608241,0.29042143,29763.0,29762.0,3.97661391]
[1609585608945,0.28837638,29763.0,29762.0,3.97661391]
[1609585611846,0.28837638,29763.0,29762.0,0.18081391]
[1609585612245,0.28837638,29763.0,29762.0,0.00038233]
[1609585612646,0.28837638,29763.0,29760.0,0.00038228]
[1609585612947,0.28837638,29763.0,29762.0,0.00038228]
[1609585613348,0.28837638,29763.0,29760.0,0.00038228]
[1609585613551,0.28837638,29763.0,29762.0,0.00038228]
[1609585613753,0.28796653,29763.0,29761.0,0.00038228]
[1609585614052,0.28796653,29763.0,29760.0,0.00038228]
[1609585614249,0.28796653,29763.0,29762.0,0.00038228]
[1609585614650,0.28796653,29763.0,29761.0,0.00038228]
[1609585614850,0.28837632,29763.0,29762.0,0.00038228]
[1609585615051,0.28796653,29763.0,29762.0,0.00038228]
[1609585615352,0.28837633,29763.0,29761.0,0.00038228]
[1609585615553,0.28837633,29763.0,29761.0,4.32348228]
[1609585615754,0.28837633,29763.0,29762.0,0.00038228]
[1609585615952,0.28796653,29763.0,29762.0,0.00038228]
[1609585616154,0.28837633,29763.0,29762.0,0.00038228]
[1609585618055,0.28796653,29763.0,29762.0,0.00038228]
[1609585619058,0.28592157,29763.0,29762.0,0.00038228]
[1609585628972,0.28387664,29763.0,29762.0,0.00038228]
[1609585634274,4.32648664,29775.0,29762.0,0.00038228]
[1609585634475,0.18043158,29763.0,29762.0,0.18081386]
[1609585634676,0.18043158,29763.0,29762.0,4.14001386]
[1609585639085,0.17838667,29763.0,29762.0,4.14001386]
[1609585647296,0.17838667,29763.0,29762.0,4.1809865]
[1609585650100,0.1787964,29763.0,29762.0,4.1809865]
[1609585650401,0.17838667,29763.0,29762.0,4.1809865]
[1609585650701,0.1787964,29763.0,29762.0,4.1809865]
[1609585654508,0.17675153,29763.0,29762.0,4.1809865]
[1609585654707,0.1763418,29763.0,29762.0,4.1809865]
[1609585656511,0.1763418,29763.0,29762.0,0.2217865]
[1609585657312,0.17675153,29763.0,29762.0,0.2217865]
[1609585657911,0.17675153,29763.0,29762.0,5.8484865]
[1609585658512,0.17675153,29763.0,29762.0,0.2217865]
[1609585660612,0.17675153,29763.0,29762.0,0.04135492]
[1609585660813,5.84565153,29763.0,29762.0,0.04135492]
[1609585661012,5.84565153,29763.0,29761.0,0.04135675]
[1609585661213,6.84565153,29763.0,29762.0,0.00038287]
[1609585661515,2.1763418,29763.0,29762.0,0.00038287]
[1609585661815,1.17675157,29763.0,29761.0,0.0003829]
[1609585662114,1.18675157,29763.0,29762.0,0.0003829]
[1609585662315,1.1863418,29763.0,29762.0,0.0003829]
[1609585662617,1.18675158,29763.0,29761.0,0.0003829]
[1609585662815,1.18675158,29763.0,29762.0,0.0003829]
[1609585663217,0.1863418,29763.0,29762.0,0.0003829]
[1609585663416,0.18675158,29763.0,29761.0,0.0003829]
[1609585663616,0.18675158,29763.0,29762.0,0.0003829]
[1609585663917,1.18675158,29763.0,29761.0,0.0003829]
[1609585664218,1.18675158,29763.0,29762.0,0.0003829]
[1609585664419,1.1863418,29763.0,29762.0,0.0003829]
[1609585664717,1.18675159,29763.0,29758.0,0.04136172]
[1609585664917,0.18675159,29763.0,29762.0,0.00038292]
[1609585665117,1.18675159,29763.0,29762.0,0.00038292]
[1609585665317,0.00040979,29762.0,29759.0,0.00038292]
[1609585665519,6.69805159,29763.0,29762.0,0.00038292]
[1609585665718,6.6976418,29763.0,29760.0,0.00038292]
[1609585666120,6.6980516,29763.0,29762.0,0.00038292]
[1609585666320,0.0004098,29762.0,29761.0,0.00038292]
[1609585666522,6.69805161,29763.0,29762.0,0.00038294]
[1609585666822,6.6976418,29763.0,29761.0,0.00038294]
[1609585667222,6.69805161,29763.0,29762.0,0.00038294]
[1609585667421,6.6976418,29763.0,29762.0,0.00038294]
[1609585667623,6.69805161,29763.0,29758.0,0.00038294]
[1609585667823,6.69805161,29763.0,29762.0,0.00038294]
[1609585668024,5.69805161,29763.0,29762.0,0.00038294]
[1609585668225,5.6976418,29763.0,29759.0,0.00038294]
[1609585668424,5.6976418,29763.0,29758.0,0.00038294]
[1609585668624,0.18043158,29759.0,29756.0,2.03410354]
[1609585669327,0.18043158,29759.0,29757.0,0.00038293]
[1609585670828,1.0,29758.0,29757.0,0.00038293]
[1609585673632,1.0,29758.0,29757.0,0.00038294]
[1609585674632,1.5601,29758.0,29757.0,0.00038294]
[1609585675335,0.5601,29758.0,29757.0,0.00038294]
[1609585680544,1.5601,29758.0,29757.0,0.00038294]
[1609585680745,1.5601,29758.0,29756.0,0.00038294]
[1609585681046,0.5601,29758.0,29757.0,0.00038294]
[1609585681445,0.5580547,29758.0,29757.0,0.00038294]
[1609585681649,0.5580547,29758.0,29756.0,0.00038294]
[1609585681848,0.5580547,29758.0,29757.0,0.00038294]
[1609585682149,0.5580547,29758.0,29756.0,0.00038294]
[1609585682347,0.5580547,29758.0,29757.0,0.00038294]
[1609585682547,1.5580547,29758.0,29757.0,0.00038294]
[1609585682947,1.5580547,29758.0,29756.0,0.00038294]
[1609585683149,1.5580547,29758.0,29757.0,0.00038294]
[1609585683548,0.5580547,29758.0,29757.0,0.00038294]
[1609585683748,0.5580547,29758.0,29756.0,0.00038294]
[1609585683948,0.5580547,29758.0,29757.0,0.00038294]
[1609585684548,0.5580547,29758.0,29756.0,0.00038294]
[1609585684749,0.5580547,29758.0,29757.0,0.00038294]
[1609585685349,0.5580547,29758.0,29756.0,0.00038294]
[1609585685549,1.5580547,29758.0,29757.0,0.00038294]
[1609585685850,1.5580547,29758.0,29755.0,0.00038294]
[1609585686052,1.5580547,29758.0,29754.0,2.19003472]
[1609585686053,1.5580547,29758.0,29757.0,0.00038294]
[1609585686350,1.5580547,29758.0,29756.0,0.00038294]
[1609585686651,1.5580547,29758.0,29754.0,2.19003472]
[1609585686851,0.18043158,29755.0,29754.0,2.19003472]
[1609585687051,0.93543158,29755.0,29754.0,2.19003472]
[1609585687251,0.93543158,29755.0,29754.0,2.19041768]
[1609585688957,1.93543158,29755.0,29754.0,2.19041768]
[1609585689156,2.93543158,29755.0,29754.0,2.19041768]
[1609585689757,2.93543158,29755.0,29754.0,0.15649296]
[1609585691356,1.93543158,29755.0,29754.0,0.15649296]
[1609585692158,2.93543158,29755.0,29754.0,0.15649296]
[1609585693661,1.18043158,29755.0,29754.0,0.15649296]
[1609585694961,1.18043158,29755.0,29754.0,0.00038296]
[1609585695161,0.18043158,29755.0,29754.0,0.00038296]
[1609585695562,0.18043158,29755.0,29753.0,0.04136586]
[1609585695861,0.18043158,29755.0,29754.0,0.00038296]
[1609585696061,0.17838618,29755.0,29754.0,0.00038296]
[1609585696261,0.17838618,29755.0,29754.0,0.03038296]
[1609585696463,0.17838618,29755.0,29754.0,0.03]
[1609585696664,0.17838618,29755.0,29754.0,0.07136586]
[1609585697265,5.44478618,29755.0,29754.0,0.07136586]
[1609585698466,0.17838618,29755.0,29754.0,0.07136586]
[1609585707587,0.17838618,29755.0,29754.0,0.64496586]
[1609585708591,0.17838618,29755.0,29754.0,0.07136586]
[1609585708788,5.31078618,29755.0,29754.0,0.07136586]
[1609585710290,5.1324,29755.0,29754.0,0.07136586]
[1609585710692,5.2336,29755.0,29754.0,0.07136586]
[1609585710892,6.41403158,29755.0,29754.0,0.07136586]
[1609585711094,7.41403158,29755.0,29754.0,0.03038296]
[1609585711495,7.41444142,29755.0,29754.0,0.03038296]
[1609585711695,7.41403158,29755.0,29754.0,0.03038296]
[1609585711895,6.41403158,29755.0,29754.0,0.03038296]
[1609585712298,6.31283158,29755.0,29754.0,0.03038296]
[1609585714801,1.18084143,29755.0,29754.0,0.03038296]
[1609585715098,5.03894143,29755.0,29754.0,0.03038296]
[1609585715498,5.03689586,29755.0,29754.0,0.03038296]
[1609585715699,5.03648601,29755.0,29754.0,0.03038296]
[1609585717109,4.03648601,29755.0,29754.0,0.03038296]
[1609585717305,4.03689586,29755.0,29754.0,0.03038296]
[1609585717509,4.03648601,29755.0,29754.0,0.03038296]
[1609585717703,4.03689586,29755.0,29754.0,0.03038296]
[1609585718005,4.03648601,29755.0,29754.0,0.03038296]
[1609585719104,5.03648601,29755.0,29754.0,0.03038296]
[1609585723509,6.03648601,29755.0,29754.0,0.03038296]
[1609585724410,5.03648601,29755.0,29754.0,0.03038296]
[1609585725110,4.03648601,29755.0,29754.0,0.03038296]
[1609585725310,5.13788601,29755.0,29754.0,0.03038296]
[1609585726012,5.03648601,29755.0,29754.0,0.03038296]
[1609585727111,6.13708601,29755.0,29754.0,0.03038296]
[1609585727311,6.13749588,29755.0,29754.0,0.03038296]
[1609585727612,6.13749588,29755.0,29748.0,0.0178]
[1609585727812,6.13749588,29755.0,29748.0,0.0079]
[1609585728013,0.00040989,29754.0,29749.0,0.00038301]
[1609585728212,0.10776989,29754.0,29749.0,0.00038301]
[1609585728412,1.0,29753.0,29749.0,0.00038301]
[1609585728613,1.00040989,29753.0,29749.0,0.00038301]
[1609585728813,0.1021,29752.0,29749.0,0.00038301]
[1609585729012,0.6597,29750.0,29749.0,0.00038301]
[1609585729213,1.84013158,29750.0,29749.0,0.00038301]
[1609585731116,0.84013158,29750.0,29749.0,0.00038301]
[1609585731914,0.83808565,29750.0,29749.0,0.00038301]
[1609585733316,1.83808565,29750.0,29749.0,0.00038301]
[1609585735119,1.18043158,29750.0,29749.0,0.00038301]
[1609585735720,1.97393158,29750.0,29749.0,0.00038301]
[1609585737724,1.97393158,29750.0,29740.0,6.88114334]
[1609585738025,1.97393158,29750.0,29741.0,0.00038306]
[1609585738726,1.18043158,29750.0,29741.0,0.00038306]
[1609585738926,5.37,29745.0,29741.0,0.00038306]
[1609585739125,1.0,29748.0,29741.0,0.00038306]
[1609585739327,0.18043158,29742.0,29741.0,0.00038306]
[1609585739926,0.18043158,29742.0,29740.0,0.00038306]
[1609585740126,0.18043158,29742.0,29741.0,0.00038306]
[1609585740726,0.18043158,29742.0,29740.0,0.04137718]
[1609585740926,0.18043158,29742.0,29739.0,0.04137685]
[1609585741326,0.18043158,29742.0,29741.0,0.00038306]
[1609585741527,0.18043158,29742.0,29740.0,0.04137671]
[1609585741727,0.18043158,29742.0,29738.0,2.02189662]
[1609585741728,0.18043158,29742.0,29741.0,0.00038306]
[1609585742227,0.18043158,29742.0,29739.0,0.00038306]
[1609585742427,0.18043158,29742.0,29739.0,0.04137693]
[1609585742627,0.18043158,29742.0,29741.0,0.00038306]
[1609585742827,0.18043158,29742.0,29739.0,0.04099387]
[1609585742828,0.18043158,29742.0,29740.0,0.00038306]
[1609585743027,0.18043158,29742.0,29739.0,0.04137693]
[1609585743427,0.18043158,29742.0,29741.0,0.00038306]
[1609585743629,0.18043158,29742.0,29740.0,0.00038306]
[1609585743829,0.18043158,29742.0,29741.0,0.00038306]
[1609585744330,0.17838557,29742.0,29741.0,0.00038306]
[1609585744530,0.17838557,29742.0,29739.0,0.04137693]
[1609585744729,0.17838557,29742.0,29741.0,0.00038306]
[1609585744929,0.17838557,29742.0,29740.0,0.00038306]
[1609585745129,0.17838557,29742.0,29739.0,0.04137693]
[1609585745531,4.2915,29740.0,29739.0,0.04099387]
[1609585745932,4.2915,29740.0,29739.0,0.04137694]
[1609585746332,0.17838557,29742.0,29739.0,0.04137694]
[1609585746532,0.17838557,29742.0,29738.0,0.04137778]
[1609585746731,0.17838557,29742.0,29739.0,0.04137812]
[1609585749638,0.17838557,29742.0,29741.0,4.512]
[1609585750237,0.17838557,29742.0,29741.0,4.55337758]
[1609585750436,0.17838557,29742.0,29741.0,4.55337757]
[1609585751337,0.17838557,29742.0,29741.0,4.73380915]
[1609585752542,0.17838557,29742.0,29741.0,6.74882478]
[1609585755642,0.282,29753.0,29741.0,8.96285858]
[1609585756041,0.282,29753.0,29742.0,0.04137142]
[1609585756942,0.1004,29752.0,29742.0,0.04137142]
[1609585757143,0.282,29753.0,29742.0,0.04137142]
[1609585757343,0.282,29753.0,29748.0,0.18043158]
[1609585757743,0.282,29753.0,29750.0,4.5486]
[1609585758144,0.282,29753.0,29751.0,0.00038254]
[1609585759345,0.282,29753.0,29752.0,0.18043158]
[1609585759945,0.282,29753.0,29752.0,0.18081407]
[1609585761046,0.282,29753.0,29752.0,0.17081407]
[1609585761345,0.46243158,29753.0,29752.0,0.17081407]
[1609585763347,0.46243158,29753.0,29752.0,0.16081407]
[1609585764051,0.282,29753.0,29752.0,0.16081407]
[1609585765052,0.282,29753.0,29752.0,0.15081407]
[1609585766853,0.282,29753.0,29752.0,0.14291407]
[1609585767453,0.46243158,29753.0,29752.0,0.14291407]
[1609585773362,0.282,29753.0,29752.0,0.14291407]
[1609585779973,0.282,29753.0,29752.0,0.18389473]
[1609585783379,5.7472,29753.0,29752.0,0.14291407]
[1609585783580,5.92763158,29753.0,29752.0,0.00038249]
[1609585783880,5.92763158,29753.0,29750.0,0.00038249]
[1609585784181,5.92763158,29753.0,29752.0,0.00038249]
[1609585784581,5.92763158,29753.0,29751.0,0.00038249]
[1609585784781,6.92763158,29753.0,29750.0,0.00038249]
[1609585784981,6.92763158,29753.0,29752.0,0.00038249]
[1609585785381,6.92763158,29753.0,29751.0,0.00038249]
[1609585785581,6.92763158,29753.0,29752.0,0.00038249]
[1609585785982,6.92763158,29753.0,29750.0,0.00038249]
[1609585786184,6.92558598,29753.0,29750.0,0.00038249]
[1609585786383,6.92558598,29753.0,29752.0,0.00038249]
[1609585786584,6.92558598,29753.0,29751.0,0.00038249]
[1609585786785,6.92558598,29753.0,29752.0,0.00038249]
[1609585787184,7.92558598,29753.0,29752.0,0.00038249]
[1609585787384,7.92558598,29753.0,29750.0,0.00038249]
[1609585787984,6.92558598,29753.0,29750.0,0.00038249]
[1609585788184,1.46038598,29753.0,29750.0,0.00038249]
[1609585789185,0.46038598,29753.0,29750.0,0.00038249]
[1609585798301,0.45834036,29753.0,29750.0,0.00038249]
[1609585799202,0.45834036,29753.0,29751.0,0.1016]
[1609585799703,0.45834036,29753.0,29752.0,0.00038251]
[1609585800304,0.45834036,29753.0,29750.0,0.00038251]
[1609585800502,0.45834036,29753.0,29752.0,0.00038251]
[1609585800805,0.45834036,29753.0,29751.0,0.00038251]
[1609585801204,0.45834036,29753.0,29752.0,0.00038251]
[1609585801606,0.45834036,29753.0,29750.0,0.00038251]
[1609585801906,0.45834036,29753.0,29752.0,0.00038251]
[1609585802108,0.45834036,29753.0,29751.0,0.00038251]
[1609585802509,0.45834036,29753.0,29752.0,0.00038251]
[1609585802710,0.45834036,29753.0,29750.0,0.00038251]
[1609585802911,0.45834036,29753.0,29752.0,0.00038251]
[1609585803313,0.45834036,29753.0,29751.0,0.00038251]
[1609585803511,0.45834036,29753.0,29752.0,0.00038251]
[1609585804012,0.45834036,29753.0,29750.0,0.00038251]
[1609585809121,0.45834036,29753.0,29751.0,5.1008]